[Event "Czech Championship 2022"]
[Site "Usti nad Labem"]
[Date "2022.05.19"]
[Round "6.7"]
[White "Kraus, Tomas"]
[Black "Mica, Marek"]
[Result "1-0"]
[ECO "A06"]
[WhiteElo "2472"]
[BlackElo "2343"]
[Annotator "TA"]
[PlyCount "135"]
[EventDate "2022.05.12"]
[EventType "swiss"]
[EventCountry "CZE"]
[SourceTitle "playchess.com"]
[Source "ChessBase"]
[SourceQuality "1"]
[TimeControl "40/5400+30:1800+30"]

{[%evp 9,135,0,10,-8,5,12,33,9,37,19,28,20,19,23,23,20,17,24,22,2,40,43,26,30,91,106,129,91,161,93,87,92,150,140,186,162,200,195,198,194,200,203,197,193,201,173,223,218,233,189,223,236,242,177,318,306,335,335,468,466,491,381,354,326,406,297,297,306,295,286,425,273,246,262,383,360,374,328,346,346,400,399,853,878,824,862,732,711,2661,2565,29966,29967,29967,29968,29968,29969,29968,29969,29967,29967,29966,1522,1186,1156,29968,29971,29971,29972,29972,29973,29973,29969,29968,29969,29968,29969,29969,29970,29969,29970,29970,29970,29970,29971,29967,29966,6643,6585]} 1. b3 {[%emt 0:00:02]} d5 {[%emt 0:01:56]} 2. Bb2 {[%emt 0:00:10]} Nf6 {[%emt 0:01:12]} 3. Nf3 {[%emt 0:00:31]} c6 {[%emt 0:01:58]} 4. d3 {[%emt 0:04:24]} Bf5 {[%emt 0:02:37]} 5. Nh4 {[%emt 0:01:05]} Bc8 {[%emt 0:02:15]} 6. Nd2 {[%emt 0:02:51] A06: Réti Opening: 1 Nf3 d5.} Nbd7 {[%emt 0:13:50]} 7. Nhf3 {[%emt 0:09:39] [#]} g6 $146 {[%emt 0:05:11]} ({Predecessor:} 7... Qc7 8. c4 e5 9. cxd5 cxd5 10. Rc1 Qb8 11. Qc2 Bd6 12. g3 O-O 13. Bg2 b6 14. O-O Bb7 15. Nh4 Rc8 {½-½ (47) Heimrath,R (2182)-Hacker,J (2382) Schwaebisch Gmuend 2017}) 8. e4 {[%emt 0:01:17][%cal Be2e4,Be4e5][%mdl 32] White is slightly better.} Bg7 {[%emt 0:05:31]} 9. e5 {[%emt 0:04:30]} Ng4 {[%emt 0:04:19]} 10. d4 {[%emt 0:04:12]} f6 {[%emt 0:04:05][%cal Rf6e5]} 11. h3 {[%emt 0:01:31]} Nh6 {[%emt 0:00:08]} 12. Bd3 $36 {[%emt 0:12:41][%mdl 2048] White has the initiative.} O-O {[%emt 0:09:18]} 13. O-O {[%emt 0:00:48]} fxe5 {[%emt 0:04:03]} 14. dxe5 {[%emt 0:04:06]} Qc7 {[%emt 0:00:58][%cal Rd7e5]} 15. Re1 {[%emt 0:01:40]} Nf7 {[%emt 0:07:00][%cal Rf7e5]} 16. Qe2 {[%emt 0:01:10]} e6 {[%emt 0:09:12]} (16... Nc5 $11 {remains equal.}) 17. c4 $16 {[%emt 0:02:51]} Qa5 {[%emt 0:10:19][%cal Od7e5]} 18. a3 {[%emt 0:04:34]} Re8 {[%emt 0:02:28]} (18... Qd8 $16) 19. b4 {[%emt 0:04:26]} (19. Rad1 $18) 19... Qd8 {[%emt 0:00:26]} 20. Nb3 {[%emt 0:02:57]} Nf8 {[%emt 0:01:03]} (20... b6 $142) 21. Rac1 {[%emt 0:02:53] White is more active.} Bd7 {[%emt 0:00:56]} (21... b6 $16 22. cxd5 exd5) 22. h4 {[%emt 0:03:17]} Rc8 {[%emt 0:00:54]} 23. g3 {[%emt 0:01:30]} Re7 {[%emt 0:01:35]} 24. Nh2 {[%emt 0:01:38]} Nh6 {[%emt 0:02:10]} 25. f4 {[%emt 0:01:41]} Be8 {[%emt 0:00:30]} 26. Qf2 {[%emt 0:05:49]} b6 {[%emt 0:00:38]} 27. c5 {[%emt 0:01:08]} Rb8 {[%emt 0:01:46]} (27... Nd7 $142 28. Nf3 bxc5) 28. g4 $18 {[%emt 0:06:28]} a5 {[%emt 0:02:00]} 29. Bc3 {[%emt 0:02:22]} axb4 {[%emt 0:00:54]} 30. Bxb4 {[%emt 0:00:41]} (30. axb4 $6 bxc5 31. Nxc5 Nd7 $16) 30... b5 {[%emt 0:00:26]} 31. g5 {[%emt 0:02:19]} Nf7 {[%emt 0:00:27]} (31... Nf5 $142 32. Ng4 Ra8 33. Nf6+ Kh8) 32. Ng4 {[%emt 0:00:50]} h5 {[%emt 0:00:49]} 33. Nf6+ {[%emt 0:00:44]} Kh8 {[%emt 0:01:18]} 34. Nd4 {[%emt 0:01:21]} Qc8 {[%emt 0:01:47]} 35. Rc3 {[%emt 0:00:43]} Nd8 {[%emt 0:00:34]} 36. Qc2 {[%emt 0:05:56]} Bf7 {[%emt 0:00:12]} 37. Ba5 {[%emt 0:01:11]} Nb7 {[%emt 0:00:27]} 38. Bb6 {[%emt 0:00:44]} Ra8 {[%emt 0:00:07]} 39. Rb1 {[%emt 0:00:52][%cal Be1b1,Bb1b4,Bb4a4][%mdl 32]} Na5 {[%emt 0:01:01]} (39... Be8 $142 40. Rb4 Na5) 40. Rb4 {[%emt 0:01:47] Strongly threatening a4.} Nc4 {[%emt 0:02:14] [#]} 41. a4 {[%emt 0:03:56]} bxa4 {[%emt 0:02:52]} (41... Be8 $142 42. axb5 (42. Bxc4 bxc4 43. Kg2 Rb7 $14) 42... cxb5 43. Nxe8 (43. Bxc4 bxc4 44. c6 Bxc6 $16) (43. Nxb5 Bxb5 44. Rxb5 Na3 $16) 43... Qxe8 44. Nxb5 (44. Bxc4 bxc4 45. c6 Rf7 $16) (44. Rxb5 Qf7 $18) 44... Ra1+ 45. Rb1 Rxb1+ 46. Qxb1 Rf7) 42. Bxc4 {[%emt 0:04:29]} dxc4 {[%emt 0:00:10]} 43. Rxa4 {[%emt 0:00:24]} Bxf6 {[%emt 0:00:48]} 44. gxf6 {[%emt 0:02:28]} ({Weaker is} 44. exf6 Re8 45. Rxa8 (45. Rcxc4 $2 e5 $19) 45... Qxa8 $16) 44... Rd7 {[%emt 0:00:18]} 45. Rcxc4 {[%emt 0:01:13]} Be8 $2 {[%emt 0:07:40]} (45... Rb8 46. Nf3 g5 47. Nxg5 Bg6) 46. Rxa8 {[%emt 0:02:39]} Qxa8 {[%emt 0:01:52]} 47. Ra4 {[%emt 0:00:20]} Qc8 {[%emt 0:01:10]} 48. Qa2 {[%emt 0:00:31] aiming for Ra8.} Rb7 {[%emt 0:04:57]} 49. Ra8 {[%emt 0:01:40]} Rb8 {[%emt 0:00:06] [#]} 50. Qa7 $1 {[%emt 0:00:52][%csl Gf6][%cal Ra7g7]} Nd7 {[%emt 0:02:59]} 51. Rxb8 {[%emt 0:00:13]} Qxb8 {[%emt 0:00:12]} 52. Qxb8 {[%emt 0:00:56]} Nxb8 {[%emt 0:00:16]} 53. Nxe6 {[%emt 0:00:06] KBN-KBN} Kg8 {[%emt 0:02:38]} 54. Ng5 {[%emt 0:00:36]} Nd7 {[%emt 0:00:39]} 55. f7+ {[%emt 0:00:24]} (55. Bd8 $142 Nxc5 56. Be7 Nd7 57. e6 Nxf6 58. Bxf6 c5 59. Ne4 Bc6 60. Nd6) 55... Bxf7 {[%emt 0:00:37]} 56. e6 {[%emt 0:00:06]} Be8 {[%emt 0:02:57]} 57. exd7 {[%emt 0:00:05]} Bxd7 {[%emt 0:00:12]} 58. Bc7 {[%emt 0:00:05]} Kg7 {[%emt 0:01:34]} 59. Be5+ {[%emt 0:00:26]} Kf8 {[%emt 0:00:20]} 60. Kf2 {[%emt 0:00:15]} Ke7 {[%emt 0:00:10]} 61. Ke3 {[%emt 0:00:11]} Bf5 {[%emt 0:00:30]} 62. Kd4 {[%emt 0:00:08]} Bg4 {[%emt 0:00:35]} 63. Bh8 {[%emt 0:00:13]} Bf5 {[%emt 0:00:33]} 64. Ke5 {[%emt 0:00:09]} Bg4 {[%emt 0:00:25]} 65. Bf6+ {[%emt 0:00:05]} Kd7 {[%emt 0:00:23]} 66. Ne4 {[%emt 0:00:13]} Bf5 {[%emt 0:00:48]} 67. Nd6 {[%emt 0:00:16]} Bb1 {[%emt 0:00:28]} 68. Bg5 {[%emt 0:00:05] Weighted Error Value: White=0.17 (very precise) /Black=0.50} 1-0

[Event "Czech Championship 2022"]
[Site "Usti nad Labem"]
[Date "2022.05.19"]
[Round "6.8"]
[White "Rasik, Vitezslav"]
[Black "Krivanek, Vladimir"]
[Result "1/2-1/2"]
[ECO "B30"]
[WhiteElo "2433"]
[BlackElo "2180"]
[Annotator "TA"]
[PlyCount "120"]
[EventDate "2022.05.12"]
[EventType "swiss"]
[EventCountry "CZE"]
[SourceTitle "playchess.com"]
[Source "ChessBase"]
[SourceQuality "1"]
[TimeControl "40/5400+30:1800+30"]

{[%evp 11,120,12,24,19,43,44,145,134,122,112,129,129,247,268,240,256,234,222,212,203,359,337,351,349,339,346,337,266,270,261,271,271,275,159,161,156,199,163,175,20,81,42,25,18,77,0,9,5,7,4,6,6,13,5,13,14,8,10,14,0,0,0,15,15,15,15,15,15,15,15,15,15,25,0,0,0,0,0,0,0,0,0,0,0,0,0,0,0,0,0,0,0,0,0,0,0,0,0,0,0,0,0,0,0,0,0,0,0,0,0,0]} 1. e4 {[%emt 0:00:04]} c5 {[%emt 0:11:28]} 2. Nf3 {[%emt 0:00:27]} Nc6 {[%emt 0:00:16]} 3. Bb5 {[%emt 0:00:22]} e6 {[%emt 0:00:24]} 4. O-O {[%emt 0:01:48]} Nge7 {[%emt 0:01:06]} 5. c3 {[%emt 0:02:11]} a6 {[%emt 0:06:16]} 6. Ba4 {[%emt 0:00:57]} d5 {[%emt 0:07:47]} (6... b5 $5 {[%cal Rb5a4]} 7. Bc2 Bb7 $11) 7. exd5 {[%emt 0:06:26] B30: Sicilian: 2...Nc6 3 Bb5, lines without ...g6.} Qxd5 {[%emt 0:01:57]} 8. d4 {[%emt 0:01:18]} b5 {[%emt 0:02:36] [#]} (8... Ng6 $14) 9. c4 $1 $16 {[%emt 0:06:29] White is clearly better. has lost popularity (9.Bb3).} Qd7 {[%emt 0:05:39]} (9... Qxc4 $2 10. Bb3 Qxf1+ 11. Qxf1 $18) 10. cxb5 {[%emt 0:02:54] [#]} axb5 $146 {[%emt 0:12:47]} ({Predecessor:} 10... Nxd4 11. Ne5 {1-0 (11) Chuprov,D-Borisenko,A Tiumen 1993}) 11. Bxb5 {[%emt 0:00:54] And now Ne5 would win.} Qb7 {[%emt 0:05:08]} (11... Ba6 $16 {keeps fighting.} 12. Bxa6 (12. Ne5 Qb7 $14) 12... Rxa6) 12. Nc3 $18 {[%emt 0:02:52]} cxd4 {[%emt 0:03:45]} 13. Nxd4 {[%emt 0:04:17] Ne4 is the strong threat.} Bd7 {[%emt 0:01:06]} 14. Qf3 {[%emt 0:11:03]} Rb8 {[%emt 0:00:53]} 15. Nxc6 {[%emt 0:08:18]} Nxc6 {[%emt 0:03:21]} (15... Bxc6 {was worth a try.} 16. a4 Rd8) 16. Bf4 {[%emt 0:06:36]} Nd4 {[%emt 0:02:05] [#]} 17. Bxd7+ $1 {[%emt 0:04:07]} Qxd7 {[%emt 0:00:15]} 18. Qe4 {[%emt 0:01:02]} f5 {[%emt 0:02:05]} 19. Qd3 {[%emt 0:09:34]} ({Weaker is} 19. Qb1 Bd6 20. Be3 Bb4 $16) 19... Rxb2 {[%emt 0:03:42][%cal Od4e2]} 20. Rfd1 {[%emt 0:01:53]} Bb4 {[%emt 0:05:02]} 21. Kh1 {[%emt 0:09:07]} Rc2 {[%emt 0:11:15]} 22. Rac1 {[%emt 0:02:23]} ({Inferior is} 22. Nb5 Qxb5 23. Qxd4 O-O $11) (22. Na4 $18) 22... Rxc1 $16 {[%emt 0:02:19]} 23. Bxc1 {[%emt 0:00:24] Black must now prevent Ne2.} Qc8 {[%emt 0:05:44]} 24. Nb5 {[%emt 0:06:28]} ({Worse is} 24. Qxd4 Bxc3 25. Qb6 Kf7 $11) 24... Nc6 {[%emt 0:00:39]} 25. Qb3 $2 {[%emt 0:01:54]} ({Better is} 25. Bb2 $18) 25... O-O {[%emt 0:00:58]} (25... Kf7 $1 $11) 26. Na7 {[%emt 0:00:16] White is more active.} Nxa7 {[%emt 0:01:09]} 27. Qxb4 {[%emt 0:00:02]} Qc2 {[%emt 0:01:52]} (27... Nc6 $11 {keeps the balance.} 28. Qa4 Ne5) 28. Qd2 {[%emt 0:01:00]} (28. Qd6 $16) 28... Rc8 {[%emt 0:00:51]} 29. Bb2 {[%emt 0:00:09]} Qxd2 30. Rxd2 $11 {[%emt 0:00:01][%mdl 4096] Endgame KRB-KRN} Nc6 {[%emt 0:02:14]} 31. g3 {[%emt 0:00:31]} e5 {[%emt 0:00:35]} 32. Kg2 {[%emt 0:00:37]} Rc7 {[%emt 0:00:33]} 33. Rc2 {[%emt 0:00:57][%cal Ob2e5] aiming for Bxe5!} Rb7 {[%emt 0:00:25]} 34. Ba1 {[%emt 0:01:56]} Rb1 {[%emt 0:00:23]} 35. Bb2 {[%emt 0:00:12]} Kf7 {[%emt 0:00:49]} 36. a3 {[%emt 0:00:35]} e4 {[%emt 0:00:28]} 37. Bxg7 {[%emt 0:01:16]} Kxg7 {[%emt 0:00:29]} 38. Rxc6 {[%emt 0:00:01] KR-KR} Rb2 {[%emt 0:00:30]} 39. Kf1 {[%emt 0:00:55]} Ra2 {[%emt 0:00:15]} 40. Ra6 {[%emt 0:00:29]} Kf7 {[%emt 0:00:27]} 41. h3 {[%emt 0:11:56]} h5 {[%emt 0:06:33] Inhibits g4.} 42. Rh6 {[%emt 0:10:24]} Rxa3 {[%emt 0:05:01] The position is equal.} 43. Rxh5 {[%emt 0:00:04]} Kg6 {[%emt 0:00:38]} 44. g4 {[%emt 0:01:46]} fxg4 {[%emt 0:01:56]} 45. hxg4 {[%emt 0:00:02]} Rf3 {[%emt 0:00:29]} 46. Ke2 {[%emt 0:02:04]} Rf4 {[%emt 0:00:49]} 47. Ke3 {[%emt 0:00:20]} Rxg4 {[%emt 0:00:42]} 48. Re5 {[%emt 0:00:10]} Kf6 {[%emt 0:00:58]} 49. Rxe4 {[%emt 0:00:03]} Rg1 {[%emt 0:00:30]} 50. Ra4 {[%emt 0:00:25]} Rh1 {[%emt 0:02:06]} 51. Ke4 {[%emt 0:01:12]} Rh2 {[%emt 0:01:43]} 52. Ra6+ {[%emt 0:00:25]} Kf7 {[%emt 0:00:27]} 53. f4 {[%emt 0:00:33]} Rb2 {[%emt 0:00:51]} 54. Ra5 {[%emt 0:00:55]} Kf6 {[%emt 0:00:43]} 55. Ra6+ {[%emt 0:00:52]} Kf7 {[%emt 0:00:21]} 56. Kf5 {[%emt 0:01:29]} Rb5+ {[%emt 0:00:09]} 57. Kg4 {[%emt 0:00:05]} Rc5 {[%emt 0:01:28]} 58. Rh6 {[%emt 0:00:53]} Kg7 {[%emt 0:01:15]} 59. Re6 {[%emt 0:00:43]} Kf7 {[%emt 0:00:24]} 60. Ra6 {[%emt 0:00:29]} Kg7 {[%emt 0:00:48] Black escapes into a draw.  Weighted Error Value: White=0.15 (very precise) /Black=0.15 (very precise)} 1/2-1/2

[Event "Czech Championship 2022"]
[Site "Usti nad Labem"]
[Date "2022.05.19"]
[Round "6.9"]
[White "Rubes, Jan"]
[Black "Finek, Vaclav"]
[Result "1-0"]
[ECO "D31"]
[WhiteElo "2386"]
[BlackElo "2410"]
[Annotator "TA"]
[PlyCount "137"]
[EventDate "2022.05.12"]
[EventType "swiss"]
[EventCountry "CZE"]
[SourceTitle "playchess.com"]
[Source "ChessBase"]
[SourceQuality "1"]
[TimeControl "40/5400+30:1800+30"]

{[%evp 19,137,45,39,46,37,-27,29,15,53,17,22,12,18,0,104,106,112,103,169,172,180,114,168,158,181,138,212,203,297,297,283,262,266,195,288,246,240,218,218,218,218,188,277,231,236,239,295,293,275,300,300,300,264,145,149,149,150,145,161,127,134,0,149,149,356,350,304,288,295,295,317,257,412,399,359,182,481,157,429,394,6191,6087,6087,5617,2482,2432,29975,29976,29976,29977,29977,29978,29978,29979,29979,29980,29980,29981,29981,29982,29982,29983,29983,29983,29983,29984,29984,29985,29985,29986,29986,29985,29985,29986,29986,29987,29987,29987,29987,29986]} 1. d4 {[%emt 0:00:03]} d5 {[%emt 0:00:05]} 2. c4 {[%emt 0:00:10]} e6 {[%emt 0:00:04]} 3. Nc3 {[%emt 0:00:18]} c6 {[%emt 0:00:06]} 4. e4 {[%emt 0:03:49]} dxe4 {[%emt 0:00:15]} 5. Nxe4 {[%emt 0:00:05]} Bb4+ {[%emt 0:00:06]} 6. Bd2 {[%emt 0:00:29]} Qxd4 {[%emt 0:00:33]} 7. Bxb4 {[%emt 0:01:02]} Qxe4+ {[%emt 0:00:09]} 8. Be2 {[%emt 0:00:26]} Nd7 {[%emt 0:10:53]} 9. Nf3 {[%emt 0:01:07]} c5 {[%emt 0:03:37]} 10. Bc3 {[%emt 0:00:10]} Ngf6 {[%emt 0:07:45]} 11. Qd6 {[%emt 0:20:33][%mdl 1024] Inhibits Qf4. White has compensation. D31: Queen's Gambit Declined: Semi-Slav without ...Nf6 (+ Marshall Gambit and Noteboom) and Exchange Variation lines without ...Nf6.} a5 {[%emt 0:06:44]} 12. Nd2 {[%emt 0:07:47]} (12. Rd1 $14) 12... Qg6 {[%emt 0:16:49]} ({Black should play} 12... Qxg2 13. Bf3 Qh3) 13. Bf3 {[%emt 0:03:16] White has an edge.} Ra6 {[%emt 0:01:12]} 14. Qc7 {[%emt 0:00:06][%csl LRa5,LRb7,LRc8]} O-O {[%emt 0:00:09]} 15. O-O {[%emt 0:01:17]} e5 {[%emt 0:10:49]} 16. Rfe1 {[%emt 0:01:54] [#]} (16. Bxb7 Ra7 17. Qxc8 Rxc8 18. Bxc8 Nh5 $17) 16... Re6 $146 {[%emt 0:00:20]} (16... Ra8 $1 $11) ({Predecessor:} 16... Ra8 17. Bxe5 Ne8 18. Qd8 Nef6 19. Qe7 Re8 20. Bxf6 Rxe7 21. Bxe7 h6 22. Bh4 Nb6 23. Rac1 Bd7 24. Bxb7 {½-½ (24) Van Seben,E (2113)-Sekret,R (2000) IECG email 2003}) 17. Ne4 $1 $16 {[%emt 0:06:47] White is more active.} (17. Bxe5 $2 Rfe8 18. Re3 Nxe5 $19) (17. Qxa5 $6 e4 18. Bd1 Ne5 $11) 17... Nxe4 {[%emt 0:02:02]} 18. Bxe4 {[%emt 0:00:16]} Qh5 {[%emt 0:01:01]} (18... Qg5 $16) 19. Rad1 $18 {[%emt 0:08:15]} (19. Bxb7 Bxb7 20. Qxb7 Rd6 $16) 19... Nf6 {[%emt 0:08:06]} 20. Bf3 {[%emt 0:00:41]} (20. Bxb7 $6 Bxb7 21. Qxb7 Qh4 $14) (20. Bc2 $1 $18 {[%cal Rc2a4]}) 20... Qf5 {[%emt 0:00:12]} (20... Qh4 $16) 21. Qxc5 {[%emt 0:12:07]} Rfe8 {[%emt 0:04:27]} 22. Qxa5 {[%emt 0:01:34]} (22. Bxa5 $6 b6 23. Bxb6 Nd7 24. Rxd7 Bxd7 $14) 22... h5 {[%emt 0:07:03]} (22... Qf4 $16 {was called for.} 23. Rd8 Qxc4) 23. Rd8 {[%emt 0:03:33]} h4 {[%emt 0:09:19]} (23... Rxd8 $142 24. Qxd8+ Re8) 24. h3 {[%emt 0:02:03]} Rxd8 {[%emt 0:03:19]} 25. Qxd8+ {[%emt 0:00:25]} Re8 {[%emt 0:00:04]} 26. Qa5 {[%emt 0:01:55][%cal Re1e5]} Qc2 {[%emt 0:00:46]} (26... e4 {might work better.}) 27. Bxe5 {[%emt 0:03:55] A strong pair of Bishops.} (27. Rxe5 Qc1+ 28. Re1 Rxe1+ 29. Bxe1 Qxc4 $18) 27... Qxc4 {[%emt 0:01:52]} 28. Bxf6 {[%emt 0:04:48]} Rxe1+ {[%emt 0:00:08]} 29. Qxe1 {[%emt 0:00:03] Qe8+ would kill now.} gxf6 {[%emt 0:00:06][%mdl 4096] Endgame KQB-KQB} 30. Qc3 {[%emt 0:01:17]} Qe6 {[%emt 0:03:25]} (30... Qxc3 $142 31. bxc3 b6) 31. Bg4 {[%emt 0:01:05]} f5 {[%emt 0:00:11]} 32. Bf3 {[%emt 0:00:03]} Bd7 {[%emt 0:01:57]} 33. Qd4 {[%emt 0:03:38]} Bc6 {[%emt 0:00:04]} 34. Bxc6 {[%emt 0:00:19]} ({Weaker is} 34. Qxh4 Bxf3 35. gxf3 Qxa2 $16) (34. Qd8+ $6 Kg7 $16) 34... Qxc6 {[%emt 0:00:27] KQ-KQ} 35. Qf4 {[%emt 0:03:09] Prevents Qc1+.} Qc2 {[%emt 0:01:15]} 36. Qxh4 {[%emt 0:03:20]} (36. b4 $1 $18) 36... Qc1+ {[%emt 0:00:19]} 37. Kh2 {[%emt 0:00:11] Strongly threatening a4.} Qxb2 {[%emt 0:00:04]} 38. a4 {[%emt 0:01:27] And now Qg5+ would win.} Qd2 {[%emt 0:01:38] Inhibits Qg5+.} 39. Qg3+ {[%emt 0:00:45]} Kh7 {[%emt 0:00:54]} 40. Qh4+ {[%emt 0:02:44]} Kg8 $1 {[%emt 0:00:53] [#]} 41. f3 $1 {[%emt 0:05:03]} Kg7 $2 {[%emt 0:04:44] [#]} (41... Qd7 $16 42. Kg3 Qd6+ 43. Qf4 Qg6+ 44. Kh2 Qe6) 42. Qg3+ $1 {[%emt 0:00:55]} Kh7 {[%emt 0:01:57]} 43. Qe5 {[%emt 0:04:21]} Kg6 {[%emt 0:01:19]} 44. h4 {[%emt 0:04:40]} Qd7 {[%emt 0:04:46]} 45. Qf4 {[%emt 0:02:21] Hoping for Qg5+.} Qe7 {[%emt 0:03:30]} (45... Kh7 46. h5 f6) 46. Kh3 {[%emt 0:00:14]} Qf6 {[%emt 0:00:57]} 47. a5 {[%emt 0:01:02]} (47. Qb8 $142) 47... Qe7 $2 {[%emt 0:00:58]} (47... Qd8 {is a better defense.} 48. h5+ Kxh5) 48. Qg3+ $2 {[%emt 0:02:20]} (48. g4 $18 {is the precise move to win.} Qf6 49. Kg3) 48... Kh6 $2 {[%emt 0:03:36] Black cannot hold the game after this.} (48... Kh7 $16 49. Qb8 Qd7) 49. Qg8 {[%emt 0:00:19] White wants to mate with Qh8+.} f4 $2 {[%emt 0:04:14]} (49... Qf6 50. g3 Qe5 51. Qxf7 Qb5 52. Qe6+ Kh7 53. Qe7+ Kh8) 50. Qh8+ {[%emt 0:04:14]} ({And not} 50. Kg4 Qd7+ 51. Kxf4 Qd2+ 52. Kg3 Qe1+ 53. Kh2 Qxh4+ 54. Kg1 Qe1+ 55. Kh2 Qh4+ 56. Kg1 Qe1+ 57. Kh2 Qh4+ $11) 50... Kg6 {[%emt 0:00:09]} 51. h5+ {[%emt 0:00:49][%cal Bh4h5,Bh5h6,Bh6h7][%mdl 32]} ({Less strong is} 51. Kg4 Qd7+ 52. Kxf4 Qf5+ 53. Kg3 Qxa5 $16) 51... Kf5 {[%emt 0:02:01]} 52. Qg7 {[%emt 0:02:30] White threatens h6 and mate.} Qc7 {[%emt 0:02:28]} 53. h6 {[%emt 0:00:28] White mates.} Qc1 {[%emt 0:00:37]} 54. Kh2 {[%emt 0:01:03]} Qe1 {[%emt 0:01:56]} 55. Qg4+ {[%emt 0:00:06]} Kf6 {[%emt 0:00:03]} 56. h7 {[%emt 0:00:08]} Qg3+ {[%emt 0:00:51]} 57. Qxg3 {[%emt 0:00:05]} fxg3+ {[%emt 0:00:04]} 58. Kxg3 {[%emt 0:00:08] KP-KP} Kg7 {[%emt 0:00:03]} 59. Kg4 {[%emt 0:00:18]} Kxh7 {[%emt 0:00:07] K3P-KPP} 60. Kg5 {[%emt 0:00:10]} Kg7 {[%emt 0:00:48]} 61. Kf5 {[%emt 0:00:08]} Kf8 {[%emt 0:00:07]} 62. Kf6 {[%emt 0:00:08]} Ke8 {[%emt 0:00:15]} 63. g4 {[%emt 0:00:03]} Kf8 {[%emt 0:00:21]} 64. g5 {[%emt 0:00:03]} Ke8 {[%emt 0:00:06]} 65. g6 {[%emt 0:00:12]} fxg6 {[%emt 0:00:05]} 66. Kxg6 {[%emt 0:00:03]} Ke7 {[%emt 0:00:08]} 67. f4 {[%emt 0:00:08]} Kf8 {[%emt 0:00:10]} 68. Kf6 {[%emt 0:00:03]} Ke8 {[%emt 0:00:08]} 69. Kg7 {[%emt 0:00:04] Weighted Error Value: White=0.23 (precise) /Black=0.46} 1-0